Cogmind - Beta 16 @@@ ROGUE MODE // 2025.11.15 @ 13:55:36 Player: Kukri Man Result: Self-destructed Performance ------------- Evolutions (1) 500 Regions Visited (3) 600 Robots Destroyed (17) 85 Value Destroyed (216) 216 Prototype IDs (0) 0 Alien Tech Used (0) 0 Bonus (0) 0 TOTAL SCORE: 1401 Bonus ------- None Cogmind --------- Core Integrity 351/400 Matter 268/300 Energy 265/265 System Corruption 0% Temperature Cool (0) Movement Walking (190) Ox1 Location -9/Mines Parts ------- > --- POWER (1) -------- Improved Ion Engine > --- PROPULSION (2) --- Aluminum Leg Aluminum Leg > --- UTILITY (4) ------ Small Storage Unit Improved Terrain Scanner Light Armor Plating Shield Generator > --- WEAPON (2) ------- Medium Laser Heavy Assault Rifle > --- INVENTORY (8) ---- (None) Peak State ------------ > --- POWER ------------ Improved Ion Engine > --- PROPULSION ------- Aluminum Leg Aluminum Leg > --- UTILITY ---------- Small Storage Unit Improved Terrain Scanner Light Armor Plating Shield Generator > --- WEAPON ----------- Medium Laser Heavy Assault Rifle > --- INVENTORY -------- Assault Rifle [Rating: 14] Favorites ----------- Power Light Ion Engine Engine Light Ion Engine Propulsion Aluminum Leg Leg Aluminum Leg Utility Small Storage Unit Device Improved Terrain Scanner Storage Small Storage Unit Protection Light Armor Plating Weapon Medium Laser Energy Gun Medium Laser Ballistic Gun Assault Rifle Build | -11 -10 -9 -9 ------- Run | Yrd Mat Mat Min Slots Evolved 2 | . . 2 . Power . | . . . . Propulsion . | . . . . Utility 2 | . . 2 . Weapon . | . . . . Parts Attached 12 | 6 2 4 . Power 3 | . 2 1 . Engine 3 | . 2 1 . Core . | . . . . Reactor . | . . . . Propulsion 2 | 2 . . . Treads . | . . . . Leg 2 | 2 . . . Wheel . | . . . . Hover . | . . . . Flight . | . . . . Utility 4 | 2 . 2 . Device 2 | 1 . 1 . Storage 1 | 1 . . . Processor . | . . . . Hackware . | . . . . Protection 1 | . . 1 . Artifact . | . . . . Weapon 3 | 2 . 1 . Energy Gun 1 | 1 . . . Energy Cannon . | . . . . Ballistic Gun 2 | 1 . 1 . Ballistic Cannon . | . . . . Launcher . | . . . . Special Weapon . | . . . . Impact Weapon . | . . . . Slashing Weapon . | . . . . Piercing Weapon . | . . . . Special Melee Weapon . | . . . . Unidentified Prototypes . | . . . . Parts Lost . | . . . . Power . | . . . . Propulsion . | . . . . Utility . | . . . . Weapon . | . . . . Highest Loss Streak . | . . . . To Critical Strikes . | . . . . Average Backups . | . . . . Power . | . . . . Propulsion . | . . . . Utility . | . . . . Weapon . | . . . . Tool/Special . | . . . . Unused Backups 1 | 1 . . . Power . | . . . . Propulsion 1 | 1 . . . Utility . | . . . . Weapon . | . . . . Tool/Special . | . . . . Average Slot Usage (%) 90 | . 94 85 100 Engine 9 | . 8 11 11 Leg 25 | . 28 22 22 Device 14 | . 14 13 22 Storage 12 | . 14 11 11 Protection 2 | . . 5 11 Energy Gun 12 | . 14 11 11 Ballistic Gun 12 | . 14 11 11 Peak Build Rating 14 | 8 9 14 14 Average Rating 8 | 3 8 10 14 On Entrance 7 | . 8 9 14 Avg Prop Armor Cover (%) . | . . . . Naked Turns . | . . . . Heaviest Build 23 | 10 13 23 23 Greatest Support 20 | 20 20 20 20 Greatest Overweight (x) 1 | . . 1 1 Average Overweight (x) . | . . . 1 Largest Inventory Capacity 8 | 8 8 8 8 Average Capacity 7 | 7 8 8 8 Most Carried 5 | 5 1 3 1 Average Carried . | . . . . Final Capacity 8 | 8 8 8 8 Final Carried 1 | . 1 1 . Class Distribution -------------------- 88% | Mutant 11% | Scavenger-Mutant Dominant Class ---------------- Mutant | -10/Materials Mutant | -9/Materials Mutant | -9/Mines Resources | -11 -10 -9 -9 ----------- Run | Yrd Mat Mat Min Matter Collected 411 | 211 89 111 . Remotely . | . . . . Salvage Created 413 | 130 136 147 . Parts 34 | 10 15 9 . Haulers Intercepted . | . . . . Recyclers Shooed 1 | 1 . . . Parts Field Recycled . | . . . . Retrieved Matter . | . . . . Parts Self-Destructed . | . . . . Prevented . | . . . . Parts Restored . | . . . . Kills | -11 -10 -9 -9 ------- Run | Yrd Mat Mat Min Combat Hostiles Destroyed 8 | . 6 2 . Guns 8 | . 6 2 . Classes Destroyed 7 | 2 4 1 . Worker 2 | . 1 1 . Builder 1 | . 1 . . Tunneler 3 | 3 . . . Recycler 1 | 1 . . . Watcher 2 | . 1 1 . Swarmer 6 | . 6 . . Sentry 2 | . . 2 . Best Kill Streak 5 | 4 5 3 . Combat Bots Only 4 | . 4 1 . Max Kills in Single Turn 1 | 1 1 1 . Gunslinging . | . . . . Exploded . | . . . . Melee . | . . . . Uniques/NPCs Destroyed . | . . . . Combat | -11 -10 -9 -9 -------- Run | Yrd Mat Mat Min Hostile Shots Fired 51 | . 28 23 . Missed 12 | . 7 5 . Hits 39 | . 21 18 . Projectile 39 | . 21 18 . Damage Taken 345 | . 163 182 . Core 88 | . 39 49 . Absorbed by Shields 39 | . . 39 . Core Remaining (%) 92 | 100 84 . . Volleys Fired 41 | 9 20 12 . Largest 2 | 2 2 2 . Hottest 73 | 70 70 73 . Shots Fired 72 | 16 32 24 . Gun 72 | 16 32 24 . Cannon . | . . . . Launcher . | . . . . Special . | . . . . Kinetic 41 | 9 20 12 . Thermal 31 | 7 12 12 . Explosive . | . . . . Electromagnetic . | . . . . Robot Hit Streak 5 | 3 3 5 . Robot Miss Streak 4 | 1 4 2 . Penetration Max . | . . . . Secondary Targets 3 | . 2 1 . Max Gunslinging Chain 1 | . 1 1 . Shots Hit Robots 38 | 9 13 16 . Core Hits 22 | 5 9 8 . Critical Kills . | . . . . Critical Parts Destroyed 1 | . . 1 . Critical Strikes 3 | . 1 2 . Burn 2 | . 1 1 . Destroy 1 | . . 1 . Melee Attacks . | . . . . Impact . | . . . . Slashing . | . . . . Piercing . | . . . . Sneak Attacks . | . . . . Combat Hostiles . | . . . . Follow-up Attacks . | . . . . Damage Inflicted 527 | 116 178 233 . Guns 527 | 116 178 233 . Cannons . | . . . . Explosions . | . . . . Melee . | . . . . Ramming . | . . . . Kinetic 313 | 91 115 107 . Thermal 214 | 25 63 126 . Explosive . | . . . . Electromagnetic . | . . . . Impact . | . . . . Slashing . | . . . . Piercing . | . . . . Highest Corruption . | . . . . Average Corruption . | . . . . Corruption Purged . | . . . . Corruption Blocked . | . . . . Overload Shots . | . . . . Overflow Damage . | . . . . Projectiles . | . . . . Explosions . | . . . . Melee . | . . . . Knockbacks . | . . . . Impact . | . . . . Kinetic . | . . . . Secondary . | . . . . Self-Inflicted Damage . | . . . . Shots . | . . . . Rammed . | . . . . Targets Rammed . | . . . . Kicked . | . . . . Crushed . | . . . . Highest Temperature 88 | . 54 88 . Average Temperature 28 | . 21 35 . Received Heat Transfer 79 | . . 79 . Siege Activations . | . . . . Martial Activations . | . . . . Shielding Activations . | . . . . Robots Disrupted . | . . . . Combat Hostiles . | . . . . Robots Corrupted . | . . . . Combat Hostiles . | . . . . Parts Fried . | . . . . Impact Corruptions . | . . . . Robots Melted . | . . . . Combat Hostiles . | . . . . Parts Melted . | . . . . Heat Transferred 777 | 74 259 444 . Parts Sabotaged . | . . . . Parts Stolen . | . . . . Parts Stripped . | . . . . Power Chain Reactions . | . . . . Alert | -11 -10 -9 -9 ------- Run | Yrd Mat Mat Min Maximum Alert Level . | . . . . Low Security (%) 100 | 100 100 100 100 Level 1 . | . . . . Level 2 . | . . . . Level 3 . | . . . . Level 4 . | . . . . Level 5 . | . . . . High Security . | . . . . Max Security . | . . . . Peak Influence 126 | 10 126 56 9 Initial 34 | . 3 34 9 Average 41 | 2 64 31 9 Influence Increases 250 | 20 158 72 . Destroy 0b10 Robot/C 160 | . 120 40 . Destroy 0b10 Robot/NC 45 | 20 15 10 . Destroy Leader 44 | . 22 22 . Destroy Structure 1 | . 1 . . Influence Decreases 241 | 15 80 129 17 Entered New Map 68 | . 2 49 17 Time Decay 173 | 15 78 80 . Squads Dispatched . | . . . . Investigation . | . . . . Extermination . | . . . . Reinforcement . | . . . . Assault . | . . . . Garrison . | . . . . Intercept . | . . . . Searches Triggered . | . . . . Construction Impeded . | . . . . Haulers Reinforced . | . . . . Active Scanning Responses . | . . . . Cargo Convoy Interrupts . | . . . . Stealth | -11 -10 -9 -9 --------- Run | Yrd Mat Mat Min Distress Signals 1 | . 1 . . Communications Jammed . | . . . . Distress Signals . | . . . . Times Spotted 14 | . 7 7 . Peak Tracking Total 4 | . 4 4 . Tactical Retreats . | . . . . Traps | -11 -10 -9 -9 ------- Run | Yrd Mat Mat Min Traps Triggered . | . . . . Indirectly . | . . . . Trap Hack Attempts . | . . . . Triggered . | . . . . Disarmed . | . . . . Reprogrammed . | . . . . Reused . | . . . . Traps Extracted . | . . . . Installed . | . . . . Triggered . | . . . . Machines | -11 -10 -9 -9 ---------- Run | Yrd Mat Mat Min Machines Disabled . | . . . . Max in Single Turn . | . . . . Machines Repaired . | . . . . Machines Dismantled . | . . . . Machines Sabotaged . | . . . . Overloaded Fab Kills . | . . . . Hacking | -11 -10 -9 -9 --------- Run | Yrd Mat Mat Min Machines Accessed 1 | . 1 . . Terminals . | . . . . Fabricators . | . . . . Repair Stations . | . . . . Recycling Units 1 | . 1 . . Scanalyzers . | . . . . Garrison Access . | . . . . Total Hacks 2 | . 2 . . Successful 2 | . 2 . . Failed . | . . . . Catastrophic . | . . . . Database Lockouts . | . . . . Manual . | . . . . Terminals . | . . . . Fabricators . | . . . . Repair Stations . | . . . . Recycling Units 2 | . 2 . . Scanalyzers . | . . . . Garrison Access . | . . . . Terminal Hacks . | . . . . Fabricator Hacks . | . . . . Repair Station Hacks . | . . . . Recycling Unit Hacks 2 | . 2 . . Report Inventory 1 | . 1 . . Retrieve Matter 1 | . 1 . . Scanalyzer . | . . . . Garrison Access Hacks . | . . . . Unauthorized Hacks . | . . . . Terminals . | . . . . Fabricators . | . . . . Repair Stations . | . . . . Recycling Units . | . . . . Scanalyzers . | . . . . Garrison Access . | . . . . Data Cores Recovered . | . . . . Used . | . . . . Hacking Detections . | . . . . Full Trace Events . | . . . . Feedback Events . | . . . . Feedback Blocked . | . . . . Robot Schematics Acquired . | . . . . Robots Built . | . . . . Authchips . | . . . . Time . | . . . . Total Robot Build Rating . | . . . . Part Schematics Acquired . | . . . . Parts Built . | . . . . Authchips . | . . . . Time . | . . . . Total Part Build Rating . | . . . . Part Studies Acquired . | . . . . Parts Repaired . | . . . . Time . | . . . . Parts Recycled . | . . . . Recycled Matter . | . . . . Retrieved Matter . | . . . . Retrieved Components . | . . . . Parts Scanalyzed . | . . . . Part Schematics Acquired . | . . . . Parts Damaged . | . . . . Bothacking | -11 -10 -9 -9 ------------ Run | Yrd Mat Mat Min Used RIF Installer . | . . . . Robots Hacked . | . . . . Non-combat . | . . . . Combat . | . . . . Robot Hacks Applied . | . . . . Relay Couplers Released . | . . . . Fabnet Peak Effective % . | . . . . Robots Rewired . | . . . . Allies Hacked . | . . . . Hacks Repelled . | . . . . Allies | -11 -10 -9 -9 -------- Run | Yrd Mat Mat Min Total Allies . | . . . . Largest Group . | . . . . Highest-Rated Group . | . . . . Highest-Rated Ally . | . . . . Total Orders . | . . . . Ally Attacks . | . . . . Total Damage . | . . . . Kills . | . . . . Allies Corrupted . | . . . . Allies Melted . | . . . . Intel | -11 -10 -9 -9 ------- Run | Yrd Mat Mat Min Active Infowar (turns) 300 | 2 120 173 5 Terrain 300 | 2 120 173 5 Robot Analysis Total . | . . . . Derelict Logs Recovered . | . . . . Drone Launches . | . . . . Drone Recoveries . | . . . . Exploration | -11 -10 -9 -9 ------------- Run | Yrd Mat Mat Min Turns Passed 450 | 72 200 173 5 Spaces Moved 257 | 40 120 95 2 Core 20 | 20 . . . Treads . | . . . . Legs 237 | 20 120 95 2 Wheels . | . . . . Hover . | . . . . Flight . | . . . . Fastest Speed 50 | 50 120 120 190 Average Speed 120 | 85 120 134 190 Slowest Speed 190 | 120 120 190 190 Overloaded Moves . | . . . . Propulsion Burnouts . | . . . . Robots Hopped . | . . . . Potential Cave-ins . | . . . . Cave-ins Triggered . | . . . . Exploration Rate (%) 13 | 4 29 16 6 Regions Visited 3 Branch Regions 1 Pre-discovered Areas . | . . . . Known Exits Taken . | . . . . Unknown Exits Taken 3 | 1 1 1 . Scrap Searched . | . . . . Spaces Dug . | . . . . Terrain Destroyed . | . . . . Melee . | . . . . Projectile . | . . . . AOE . | . . . . Terrain Rammed . | . . . . Walls Destroyed . | . . . . Machines Disabled . | . . . . Actions | -11 -10 -9 -9 --------- Run | Yrd Mat Mat Min Total 324 | 62 143 116 3 Wait . | . . . . Move 254 | 39 119 94 2 Hop . | . . . . Pick Up 13 | 7 2 4 . Fast Attach . | . . . . Attach 9 | 6 1 2 . Detach . | . . . . Swap 3 | . 1 2 . Drop 4 | 1 . 2 1 Fire 41 | 9 20 12 . Melee . | . . . . Ram . | . . . . Kick . | . . . . Crush . | . . . . Escape Stasis . | . . . . Rewire . | . . . . Trap . | . . . . Miscellaneous . | . . . . Route ------- -11/Scrapyard -10/Materials -9/Materials -9/Mines History --------- Turn | Location | Event 13 | -11/Scrapyard | Discovered new exit (range 15) 73 | -11/Scrapyard | Entered Materials 260 | -10/Materials | Discovered new exit (range 11) 273 | -10/Materials | Entered another Materials area 273 | -9/Materials | Evolved 2 slots: Utility x2 305 | -9/Materials | Build established: Mutant 407 | -9/Materials | Discovered new exit (range 11) 446 | -9/Materials | Entered Mines 447 | -9/Mines | Assembled infested the area 451 | -9/Mines | Self-destructed Last Messages --------------- 00388_ Acquired 42 matter. 00389_ K-01 Serf collects debris. 00393_ Acquired Hvy. Assault Rifle. 00393_ K-01 Serf collects debris. 00405_ Acquired Shield Generator. 00407_ K-01 Serf collects debris. 00407_ EXIT=FOUND 00411_ K-01 Serf collects debris. 00413_ R-06 Scavenger collects Lgt. Treads. 00414_ K-01 Serf collects debris. 00418_ R-06 Scavenger collects Beam Rifle. 00422_ G-34 Mercenary suffers critical hit (Destroy). 00422_ Destroyed Aluminum Leg. 00425_ K-01 Serf collects debris. LOCATION=UNKNOWN GOAL=ESCAPE 00447_ ALERT: Infestation in the mines, dispatching Demolisher response squad. 00450_ Dropped Assault Rifle. Map ----- +----------------------------------------------------+ | ?????????????????????????????????????????? | | ?????????????????????????????????????????? | | ?????????????????????????????????????????? | | ?????????????????????????????????????????? | | ?????????????????????????????????????????? | | ?????????????????????????????????????????? | | ?????????????????????????????????????????? | | ?????????????????????????????????????????? | | ?????????????????????????????????????????? | | ?????????????????????????????????????????? | | ?????????????????????????????????????????? | | ?????????????????????????????????????????? | | ?????????????????????????????????????????? | | ??????????????????????????##?????????????? | | ?????????????????????????? #?????????????? | | ?????????????????????????? #?????????????? | | ?????????????????????????? #?????????????? | | ?????????????????????????? #?????????????? | | ?????????????????????????? #?????????????? | | ???????????????????????### #?????????????? | | ???????????????????????# ##????????????? | | ???????????????????????# #????????????? | | ???????????????????????# #????????????? | | ???????????????????????# ##??#????????? | | ??????????????????????## h ####????????? | | ????????????#?????????# @ #????????? | | ?????????????????????# #???????? | | ??????????????????? #???????? | | ??????????????????# $### ##???????? | | ??????????????????# ###???# ##????????? | | ??????????????????# ??????? #?????????? | | ??????????????????#???????? #?????#??? | | ??????????????????????????? #????????? | | ???????????????????????????? #????????? | | ???????????????????????????? ##????????? | | ???????????????????????????? #?????????? | | ???????????????????????????? ##?????????? | | ?????????????????????????????##??????????? | | ?????????????????????????????????????????? | | ?????????????????????????????????????????? | | ?????????????????????????????????????????? | | ?????????????????????????????????????????? | | ?????????????????????????????????????????? | | ?????????????????????????????????????????? | | ?????????????????????????????????????????? | | ?????????????????????????????????????????? | | ?????????????????????????????????????????? | | ?????????????????????????????????????????? | | ?????????????????????????????????????????? | | ?????????????????????????????????????????? | +----------------------------------------------------+ Best States ------------- Heat Dissipation 28 Energy Generation 12 Energy Capacity 265 Matter Stores 300 Matter Capacity 300 Sight Range 16 Terrain Scan Range 16 Terrain Scan Density 10 Armor Coverage 150 Evasion (%) 55 Item Schematics ----------------- None Robot Schematics ------------------ None Fabricated ------------ Nothing Repaired ---------- Nothing Studied --------- None Alien Tech Used ----------------- None Achievements -------------- None Challenges ------------ None Game ------ Seed TerrorUltimateWartreads Manual? 0 Play Time 00:09:17 Cumulative 2.6 hours Start 2025.11.15 @ 13:04:04 End 2025.11.15 @ 13:55:36 Sessions 3 Manual Loads 0 Difficulty Rogue Special Mode None Game No. 6 Rogue 4 Adventurer 2 Explorer 0 Win Type - Total 0 Types 0/0/0/0/0/0/0/0/0/0 Lore% 2 Gallery% 5 Achievement% 4 Wizard Run 0 Options --------- Layout 1 ASCII 0 Keyboard 0 Movement Mouse Keybinds 0 Fullscreen 1 Font 32/SmallcapsGlow Map View 50x40 Zoom Use 0% Tactical HUD 1 Map Filters NONE Filters NONE Steam 1 RUN: 6de8838a-97f1-4c54-ad55-255ab3c4501e